bitfinex/quotes_ETHUSD_20241129
["timestamp","ask_amount","ask_price","bid_price","bid_amount"]
[1732841488523,4.64150006,3560.0,3559.2,0.03882535]
[1732841488724,3.46415001,3559.9,3559.2,0.03882535]
[1732841488921,0.55,3559.8,3559.2,2.8096]
[1732841489119,0.55,3559.8,3559.3,0.03882535]
[1732841489531,0.55,3559.8,3559.1,2.80969]
[1732841489729,7.36090125,3559.5,3559.4,0.03882535]
[1732841490004,0.55,3559.3,3558.1,3.59575]
[1732841490206,3.81090125,3558.7,3558.4,2.81024]
[1732841490405,3.81090125,3558.7,3558.1,0.7853]
[1732841490610,3.81090125,3558.7,3558.2,0.03882535]
[1732841490858,3.81090125,3558.7,3558.3,2.81025]
[1732841491147,3.0,3558.6,3558.2,2.8104]
[1732841491355,3.0,3558.6,3558.4,0.03882535]
[1732841491653,0.02089881,3558.5,3558.0,2.81049]
[1732841491815,3.37398321,3558.6,3558.1,0.03848625]
[1732841493748,0.8082,3559.0,3558.1,0.03848625]
[1732841494059,3.0,3559.1,3558.6,2.81004]
[1732841494265,3.0,3559.1,3558.7,0.03848625]
[1732841494617,0.7784,3559.4,3558.9,2.80984]
[1732841494852,3.0,3559.1,3558.3,2.81029]
[1732841495021,3.0,3559.1,3557.7,0.7576]
[1732841495022,3.0,3559.1,3558.6,2.81005]
[1732841495221,3.0,3559.1,3558.7,2.80993]
[1732841495462,3.81090125,3559.7,3558.9,2.80985]
[1732841495758,3.81090125,3559.7,3559.2,2.80961]
[1732841495920,4.35511877,3559.7,3559.0,0.03848625]
[1732841496124,4.35511877,3559.7,3559.0,2.80977]
[1732841496323,4.35511877,3559.7,3559.1,2.84814625]
[1732841496742,3.0,3559.6,3559.1,0.03848625]
[1732841497056,2.80963,3559.2,3558.4,2.81018]
[1732841497255,5.81013,3558.6,3558.5,0.03848625]
[1732841497558,5.81013,3558.6,3556.8,0.8059]
[1732841497559,3.02089881,3558.6,3556.8,0.8059]
[1732841497766,3.0,3558.6,3558.0,2.81055]
[1732841498323,3.0,3558.6,3558.1,2.84720687]
[1732841498660,3.0,3558.6,3558.1,0.03673687]
[1732841499026,3.55289465,3558.6,3558.1,0.03673687]
[1732841499225,3.55289465,3558.6,3557.9,2.81064]
[1732841499426,3.55289465,3558.6,3558.0,2.84729687]
[1732841500555,0.55289465,3558.6,3558.0,0.03673687]
[1732841500722,0.57379346,3558.6,3558.0,0.03673687]
[1732841500939,0.63837435,3558.5,3558.0,0.03673687]
[1732841501143,0.02089881,3558.4,3558.0,0.03673687]
[1732841501563,3.02089881,3558.4,3558.0,0.03673687]
[1732841501772,5.83117881,3558.4,3558.0,0.03673687]
[1732841501951,3.55,3558.1,3557.2,2.81116]
[1732841502265,0.81363012,3558.0,3557.0,2.81128]
[1732841502515,3.0,3557.7,3557.0,2.81128]
[1732841502760,0.02089881,3557.6,3557.0,2.81128]
[1732841502970,3.02089881,3557.7,3557.1,2.81125]
[1732841503137,0.81363012,3558.0,3557.4,2.81101]
[1732841503460,0.8197,3557.5,3556.8,2.81144]
[1732841503966,0.8197,3557.5,3556.7,2.81159]
[1732841504130,0.8197,3557.5,3557.3,2.81111]
[1732841504662,0.8197,3557.5,3557.4,2.81104]
[1732841504878,1.26218283,3557.9,3556.6,0.7775]
[1732841505028,0.02089881,3558.1,3557.4,2.81099]
[1732841505029,3.02089881,3558.1,3557.4,2.81099]
[1732841505379,0.68318001,3558.0,3557.4,2.81098]
[1732841505528,0.82949881,3558.3,3557.5,2.81089]
[1732841505925,0.82949881,3558.3,3556.9,2.81143]
[1732841506126,0.82949881,3558.3,3556.8,0.815]
[1732841506341,0.25822858,3558.6,3558.3,2.81032]
[1732841506559,1.06232858,3559.1,3558.7,2.81001]
[1732841506769,0.25822858,3559.1,3558.6,2.81009]
[1732841506944,0.25822858,3559.4,3558.6,2.81009]
[1732841507139,0.25822858,3559.4,3557.9,0.815]
[1732841507404,0.42880607,3559.3,3557.9,1.177586]
[1732841507545,0.17057749,3559.3,3558.6,2.81002]
[1732841507744,0.40790726,3559.3,3558.6,2.81002]
[1732841507967,0.14967868,3559.3,3558.1,0.02810264]
[1732841508242,1.06232858,3559.5,3558.9,2.80983]
[1732841508444,0.25822858,3559.5,3558.9,2.80983]
[1732841508756,0.25822858,3559.6,3559.2,2.80959]
[1732841508957,0.25822858,3559.8,3559.2,2.80959]
[1732841509266,0.7869,3559.9,3559.2,2.80959]
[1732841509471,0.25822858,3560.1,3558.7,0.7985]
[1732841509659,0.25822858,3560.2,3559.7,2.80922]
[1732841510008,0.25822858,3560.2,3559.8,2.80914]
[1732841510188,0.7869,3560.3,3559.6,2.80927]
[1732841510389,0.7869,3560.3,3559.7,2.8092]
[1732841510545,0.7869,3560.3,3559.8,2.80909]
[1732841510952,0.7869,3560.3,3559.4,2.80939]
[1732841510953,1.19350274,3560.3,3559.4,2.80939]
[1732841511192,5.80898,3560.1,3559.0,2.80975]
[1732841511479,0.02089881,3560.0,3559.0,2.80977]
[1732841511787,0.27945354,3560.0,3559.3,2.80947]
[1732841511947,0.25855473,3560.0,3559.3,2.80947]
[1732841512295,0.20229563,3560.0,3559.3,2.80946]
[1732841512462,0.2585699,3560.2,3559.7,2.80916]
[1732841512656,1.19350274,3560.3,3559.7,2.80916]
[1732841512883,0.40660274,3560.3,3559.7,2.80916]
[1732841513273,0.42750155,3560.3,3559.5,3.59881]
[1732841513481,3.55,3560.2,3559.1,2.80969]
[1732841513652,0.95809787,3560.1,3559.0,2.80976]
[1732841513859,0.95809787,3560.1,3559.1,0.03506702]
[1732841514054,0.95809787,3560.1,3559.2,2.80955]
[1732841514391,0.69952797,3560.1,3559.0,2.80971]
[1732841514589,0.93719906,3560.1,3559.3,0.03506702]
[1732841514755,0.02089881,3560.0,3559.0,2.80971]
[1732841514955,0.7758,3559.9,3559.0,2.80971]
[1732841515154,0.7758,3559.9,3559.1,2.84471702]
[1732841515595,0.7758,3559.9,3559.1,0.03506702]
[1732841515796,3.60576881,3559.9,3558.8,5.61978]
[1732841516007,0.94146888,3559.8,3558.7,0.7895]
[1732841516160,0.02089881,3559.7,3559.0,2.80976]
[1732841516502,0.94146888,3559.8,3559.1,0.03462611]
[1732841516661,0.7758,3559.9,3559.2,2.8096]
[1732841517175,0.7758,3559.9,3559.3,0.03462611]
[1732841517558,0.7758,3559.9,3559.2,2.8096]
[1732841517761,0.7758,3559.9,3558.7,0.7895]
[1732841518002,0.66476964,3560.3,3558.7,0.81759558]
[1732841518205,3.62491881,3560.5,3558.8,2.80993]
[1732841518361,0.81629881,3560.5,3558.8,2.80993]
[1732841518563,0.81629881,3560.5,3559.6,2.80929]
[1732841519074,0.81629881,3560.5,3559.6,2.80924]
[1732841519278,0.7954,3560.5,3559.7,2.80921]
[1732841519498,0.38162988,3560.4,3559.7,2.80921]
[1732841519863,0.38162988,3560.4,3559.9,2.80899]
[1732841520062,0.7954,3560.5,3559.7,2.80916]
[1732841520295,0.02089881,3560.4,3559.7,2.80916]
[1732841520488,3.02089881,3560.4,3559.5,3.59056]
[1732841520658,0.02089881,3560.4,3559.6,2.80929]
[1732841520863,0.7954,3560.5,3559.8,2.80914]
[1732841521063,1.455775,3560.5,3559.8,2.80914]
[1732841521537,0.02089881,3560.4,3559.5,3.59055]
[1732841521831,3.57089881,3560.4,3559.5,3.59055]
[1732841522041,3.55,3560.4,3559.5,3.59055]
[1732841522196,0.55,3560.4,3559.5,0.7812]
[1732841522538,0.52147631,3560.3,3559.5,0.7812]
[1732841522698,0.5005775,3560.3,3559.5,0.7812]
[1732841523123,2.80903,3560.0,3559.1,0.7662]
[1732841523436,0.7535,3559.6,3558.5,2.81016]
[1732841523841,0.7535,3559.6,3558.7,2.80994]
[1732841523990,0.7535,3559.6,3558.8,2.80991]
[1732841524997,0.7535,3559.6,3558.1,0.57188641]
[1732841524998,0.7535,3559.6,3558.1,3.38233641]
[1732841525233,0.7535,3559.6,3558.5,2.81011]
[1732841525409,0.7535,3559.6,3558.9,2.80984]
[1732841525597,3.8276,3559.9,3558.9,3.64254]
[1732841525800,0.02089881,3559.8,3558.9,0.8327]
[1732841525995,0.38484988,3559.7,3558.9,3.64254]
[1732841526331,0.02089881,3559.6,3558.5,0.8327]
[1732841526493,0.8276,3559.1,3557.9,0.8327]
[1732841526695,2.81012,3558.6,3557.5,3.64365]
[1732841526938,2.81034,3558.3,3557.2,0.8327]
[1732841527097,0.94690088,3558.3,3557.2,3.64386]
[1732841527292,0.94690088,3558.3,3557.2,3.64383]
[1732841527555,0.8276,3558.4,3557.4,2.811]
[1732841528734,3.8276,3558.4,3557.4,2.811]
[1732841528940,3.8276,3558.4,3557.2,3.64383]
[1732841529138,0.8276,3558.4,3557.6,2.81084]
[1732841529347,3.0,3558.7,3557.7,2.81072]
[1732841529641,0.964213,3558.6,3557.9,2.81061]
[1732841529844,0.8322,3558.8,3557.2,3.64389]
[1732841530151,0.8322,3558.8,3557.9,2.81064]
[1732841530311,0.8322,3558.8,3558.1,2.81047]
[1732841530510,0.8322,3558.8,3558.0,3.5996]
[1732841530706,0.7836,3559.1,3558.2,2.8104]
[1732841531023,0.7836,3559.1,3558.0,0.7891]
[1732841531220,1.142907,3559.1,3558.0,0.7891]
[1732841531429,0.7789,3559.5,3558.9,2.80983]
[1732841531760,0.02089881,3560.1,3558.6,0.8259]
[1732841532055,0.7789,3560.4,3559.9,2.80903]
[1732841532362,0.02089881,3560.3,3559.6,0.7875]
[1732841532602,0.02089881,3560.6,3559.6,0.7875]
[1732841532706,0.02089881,3560.5,3559.6,3.59672]
[1732841532913,0.36216588,3560.5,3559.7,2.80915]
[1732841533112,4.05087026,3560.8,3559.7,2.80915]
[1732841533428,3.81319881,3560.8,3559.7,2.80915]
[1732841533621,3.62155881,3560.8,3559.7,2.80915]
[1732841534123,3.0,3560.7,3559.7,2.80915]
[1732841534325,0.66215588,3560.6,3559.7,2.80915]
[1732841534864,3.0,3560.4,3559.5,2.80937]
[1732841535016,3.0,3560.4,3559.6,2.8093]
[1732841535448,0.66215588,3560.6,3559.4,2.80941]
[1732841535750,0.02089881,3560.5,3559.4,2.80941]
[1732841535919,0.92118261,3560.6,3559.3,2.80954]
[1732841536121,0.25902673,3561.0,3560.3,2.80873]
[1732841536444,0.02089881,3560.9,3559.7,2.80916]
[1732841536608,0.7928,3560.8,3559.3,0.8135]
[1732841536815,2.80886,3560.2,3559.2,2.80957]
[1732841537121,2.80886,3560.2,3559.0,2.80971]
[1732841537122,0.8155,3560.0,3559.0,2.80971]
[1732841537324,0.02089881,3559.9,3558.7,2.80994]
[1732841537852,0.8155,3560.0,3558.5,0.8213]
[1732841537853,0.8155,3560.0,3559.1,2.80969]
[1732841538359,0.8155,3560.0,3559.1,2.80963]
[1732841538511,0.8155,3560.0,3559.3,2.80953]
[1732841538713,0.8155,3560.0,3559.4,2.80939]
[1732841538914,0.8155,3560.0,3558.7,2.81001]
[1732841538915,0.8155,3560.0,3559.1,2.80966]
[1732841539133,0.02089881,3559.9,3559.1,2.80966]
[1732841539314,0.02089881,3559.9,3558.6,2.81007]
[1732841539544,1.3283,3559.6,3558.3,2.81025]
[1732841539741,2.80952,3559.4,3558.1,3.63026]
[1732841539943,0.41587188,3559.3,3558.1,3.993286]
[1732841540200,0.41587188,3559.3,3558.5,2.81012]
[1732841540904,0.7783,3559.6,3558.5,2.81012]
[1732841541095,0.7783,3559.6,3558.9,2.80985]
[1732841541399,0.7783,3559.6,3558.1,1.182826]
[1732841541400,0.7783,3559.6,3559.0,2.80977]
[1732841541966,0.25898527,3559.9,3559.0,2.80977]
[1732841541967,0.25898527,3559.9,3559.3,2.80953]
[1732841542818,0.25898527,3559.9,3559.6,2.80926]
[1732841542976,0.25898527,3559.9,3558.9,0.8208]
[1732841543177,0.25898527,3559.9,3559.1,2.80962]
[1732841543407,0.25898527,3559.9,3559.4,2.80944]
[1732841544015,0.25910906,3560.2,3559.4,2.80944]
[1732841544290,0.28001025,3560.3,3558.9,0.8208]
[1732841544532,2.80882,3560.3,3559.0,2.80977]
[1732841544686,0.61950344,3560.2,3559.3,2.80949]
[1732841545117,0.61950344,3560.2,3559.0,2.80977]
[1732841545325,3.63662,3560.0,3559.1,2.80969]
[1732841545522,0.02089881,3559.9,3558.9,2.80985]
[1732841545728,1.00858523,3559.9,3559.1,2.80963]
[1732841546307,1.00858523,3559.9,3559.2,2.80961]
[1732841546504,1.00858523,3559.9,3559.3,2.80951]
[1732841547102,1.00858523,3559.9,3558.9,2.80978]
[1732841547325,0.50451733,3559.8,3559.0,2.80977]
[1732841548028,0.50451733,3559.8,3559.1,2.80966]
[1732841548335,0.48361852,3559.8,3559.2,2.80961]
[1732841548628,0.7936,3560.6,3560.0,2.80897]
[1732841548789,0.7936,3560.6,3559.2,2.80962]
[1732841548790,0.7936,3560.6,3559.8,2.80911]
[1732841548986,0.02089881,3560.5,3559.7,2.80921]
[1732841550028,0.02089881,3560.5,3559.8,2.80914]
[1732841550233,0.02089881,3560.5,3559.6,2.80928]
[1732841550407,0.3882226,3560.4,3559.8,2.80913]
[1732841551032,0.02089881,3560.3,3559.5,2.80938]
[1732841551234,0.02089881,3560.3,3558.6,2.81001]
[1732841551235,2.80931,3559.6,3558.6,2.81001]
[1732841551439,2.80963,3559.2,3558.2,2.81035]
[1732841551649,0.02089881,3559.1,3558.0,2.81049]
[1732841551846,2.81031,3558.4,3557.6,0.28721469]
[1732841552148,2.81048,3558.2,3557.3,2.81111]
[1732841552446,1.32094,3558.3,3557.5,2.81095]
[1732841552794,4.32094,3558.3,3557.2,2.81116]
[1732841553002,1.32094,3558.3,3556.9,0.7603]
[1732841553196,0.7589,3558.3,3557.0,0.02810886]
[1732841553402,0.7589,3558.3,3557.1,2.81127]
[1732841553638,0.7589,3558.3,3557.7,2.81078]
[1732841553802,0.7589,3558.3,3557.8,2.81069]
[1732841554331,0.7589,3558.3,3557.9,2.81063]
[1732841556042,0.7589,3558.3,3558.1,2.81047]
[1732841556241,3.0,3559.1,3558.2,2.81033]
[1732841556407,3.0,3559.1,3558.0,2.81054]
[1732841556602,2.80986,3558.9,3558.0,2.81054]
[1732841556823,3.0,3558.8,3558.0,2.81054]
[1732841557144,0.7551,3558.7,3558.0,2.81054]
[1732841557347,0.37949369,3558.6,3557.7,2.81072]
[1732841557544,0.37949369,3558.6,3557.8,2.81069]
[1732841557720,0.35859488,3558.6,3557.9,2.8106]
[1732841559032,0.02089881,3558.5,3557.6,2.81087]
[1732841559349,0.35859488,3558.6,3557.7,2.81079]
[1732841559640,0.35859488,3558.6,3558.0,2.81056]
[1732841559851,0.7551,3558.7,3557.5,0.7799]
[1732841560003,0.7551,3558.7,3558.0,2.81051]
[1732841560202,0.7551,3558.7,3558.2,2.81033]
[1732841560811,0.7551,3558.7,3558.3,2.81025]
[1732841561009,0.7551,3558.7,3558.3,2.81026]
[1732841561232,0.7551,3558.7,3558.1,2.81047]
[1732841561431,0.7551,3558.7,3558.2,2.81039]
[1732841561630,2.83098881,3558.6,3557.8,2.81067]
[1732841561835,2.83098881,3558.6,3556.3,6.72280125]
[1732841561836,0.8271,3558.4,3557.3,2.81109]
[1732841562006,2.81041,3558.2,3556.8,0.8002]
[1732841562208,2.81063,3558.0,3557.0,2.81129]
[1732841562406,0.7879,3558.1,3557.6,2.81086]
[1732841562615,0.7879,3558.1,3557.7,2.81075]
[1732841562847,0.8252,3558.9,3558.2,2.81039]
[1732841563150,0.2587267,3559.2,3557.9,0.8017]
[1732841563341,0.8252,3559.3,3558.3,2.81033]
[1732841563683,2.80969,3559.2,3558.2,2.81033]
[1732841563979,2.8097,3559.1,3558.2,2.81034]
[1732841564143,0.36349,3559.0,3558.2,2.81034]
[1732841564344,3.17328,3559.0,3558.2,2.81034]
[1732841564651,3.17328,3559.0,3557.9,2.81058]
[1732841564652,0.7561,3558.9,3558.0,2.81054]
[1732841564838,0.7561,3558.9,3557.4,2.81097]
[1732841564839,2.81028,3558.4,3557.4,2.81097]
[1732841565043,2.81103,3557.5,3556.2,0.7528]
[1732841565257,0.8225,3557.3,3556.8,2.81143]
[1732841565454,0.8225,3557.3,3556.6,2.81166]
[1732841565990,0.8225,3557.3,3556.6,2.8116]
[1732841566194,0.8225,3557.3,3556.7,2.81156]
[1732841566368,0.8225,3557.3,3556.3,2.81191]
[1732841566558,0.8225,3557.3,3556.5,2.81168]
[1732841566890,0.8225,3557.3,3556.7,2.81152]
[1732841567250,0.8225,3557.3,3556.3,3.449509]
[1732841567251,2.81119,3557.2,3556.3,2.8119]
[1732841567682,0.8225,3557.3,3555.8,0.7627]
[1732841567893,0.8225,3557.3,3556.4,2.81177]
[1732841568056,0.663354,3557.2,3556.4,2.81177]
[1732841568256,2.8112,3557.2,3556.1,2.81201]
[1732841568574,2.8112,3557.2,3556.3,2.8119]
[1732841568776,3.7951,3557.1,3555.3,0.7627]
[1732841568953,3.7951,3557.1,3555.5,2.81254]
[1732841569155,0.7951,3556.7,3555.6,2.81246]
[1732841569373,0.7951,3556.7,3555.1,0.56766162]
[1732841569578,0.7951,3556.7,3556.1,2.812]
[1732841569869,0.7951,3556.7,3556.2,2.81195]
[1732841570415,0.02089881,3556.6,3555.8,2.81223]
[1732841570604,0.7951,3556.7,3556.1,2.81205]
[1732841570923,0.94276288,3556.7,3556.1,2.81205]
[1732841571092,0.94276288,3556.7,3555.4,0.25]
[1732841571279,0.94276288,3556.7,3555.9,2.81219]
[1732841571616,2.81176,3556.5,3555.6,2.81239]
[1732841571810,0.7502,3556.4,3555.6,2.81239]
[1732841572012,1.42115129,3556.4,3555.6,2.81239]
[1732841572581,0.7502,3556.4,3555.8,2.8123]
[1732841572779,0.7502,3556.4,3556.1,2.81206]
[1732841573217,0.7502,3556.4,3556.3,2.81191]
[1732841574882,0.7793,3556.9,3556.3,2.81191]
[1732841575078,0.02089881,3556.8,3556.0,2.81208]
[1732841575314,0.44608288,3556.7,3555.7,2.81236]
[1732841575514,0.44608288,3556.7,3555.6,2.81244]
[1732841575515,3.0,3556.6,3555.6,2.81244]
[1732841575817,0.7793,3556.5,3556.0,2.81214]
[1732841576121,0.7793,3556.5,3556.3,2.8119]
[1732841576717,0.7793,3556.5,3556.4,2.81183]
[1732841577280,0.7793,3556.5,3555.8,2.84040893]
[1732841577476,0.7793,3556.5,3555.5,2.81247]
[1732841577680,0.359096,3556.4,3555.6,2.81243]
[1732841577923,0.359096,3556.4,3555.8,2.81223]
[1732841578122,0.7793,3556.5,3555.6,5.62486]
[1732841578362,0.7793,3556.5,3555.7,2.81231]
[1732841578539,0.7793,3556.5,3555.6,2.81243]
[1732841578743,0.7793,3556.5,3555.4,0.25]
[1732841578954,0.7793,3556.5,3556.1,2.81206]
[1732841579466,1.15723,3556.5,3555.4,0.25]
[1732841579668,1.15723,3556.5,3555.9,2.81217]
[1732841579869,1.15723,3556.5,3555.5,0.7893]
[1732841580072,1.15723,3556.5,3556.1,2.81204]
[1732841580364,3.0,3556.8,3555.6,2.81239]
[1732841580578,3.0,3556.8,3555.4,0.25]
[1732841580579,0.777,3557.3,3557.1,2.81126]
[1732841581850,0.8229,3557.9,3557.2,2.81119]
[1732841582058,0.8229,3557.9,3556.9,0.02811104]
[1732841582246,0.8229,3557.9,3557.7,2.81074]
[1732841582452,0.8229,3557.9,3556.7,2.81159]
[1732841582682,0.02089881,3557.8,3557.2,2.81118]
[1732841582838,0.8229,3557.9,3557.2,2.81118]
[1732841583169,0.8229,3557.9,3557.3,2.81105]
[1732841583471,0.8229,3557.9,3556.7,2.81152]
[1732841583780,0.8229,3557.9,3557.5,2.81095]
[1732841583980,0.8229,3557.9,3556.9,0.02810865]
[1732841584141,0.7843,3558.2,3557.4,0.7559]
[1732841584479,0.7843,3558.2,3557.6,2.81081]
[1732841584676,0.7843,3558.2,3558.0,2.81049]
[1732841584980,0.7843,3558.2,3558.1,2.81048]
[1732841585161,0.7834,3558.5,3557.0,0.7593]
[1732841585358,0.7834,3558.5,3558.0,2.8105]
[1732841586033,0.7834,3558.5,3557.9,2.81061]
[1732841586352,0.7834,3558.5,3557.9,5.62122]
[1732841586558,0.7834,3558.5,3557.9,2.81061]
[1732841587465,0.7834,3558.5,3558.1,2.81047]
[1732841588079,0.7767,3558.9,3558.1,2.81047]
[1732841588284,0.02089881,3558.8,3557.9,2.8106]
[1732841588439,3.8192,3558.8,3557.9,2.8106]
[1732841588780,0.8192,3558.4,3557.6,2.8108]
[1732841588949,2.83123881,3558.3,3557.3,2.81108]
[1732841589177,2.81058,3558.0,3557.1,2.81121]
[1732841589480,0.8149,3557.6,3556.4,0.7657]
[1732841589686,0.8149,3557.6,3557.1,2.81121]
[1732841589860,0.8149,3557.6,3556.8,2.8115]
[1732841590056,0.8149,3557.6,3556.9,2.81142]
[1732841590256,1.17955488,3557.6,3556.8,2.8115]
[1732841590457,0.8149,3557.6,3556.8,2.8115]
[1732841590682,0.8149,3557.6,3557.2,2.81118]
[1732841590878,0.8149,3557.6,3557.2,2.81113]
[1732841591079,0.7887,3558.1,3557.5,2.81094]
[1732841591997,0.7887,3558.1,3557.5,2.81094]
[1732841592901,0.7887,3558.1,3556.8,0.758]
[1732841593193,0.7887,3558.1,3557.8,2.81069]
[1732841593495,0.7887,3558.1,3557.5,2.81091]
[1732841593792,0.7887,3558.1,3557.7,2.81079]
[1732841594155,0.7887,3558.1,3557.8,2.81071]
[1732841595394,0.7887,3558.1,3557.0,2.81135]
[1732841595564,0.7887,3558.1,3557.7,2.81078]
[1732841595967,0.7955,3558.6,3557.8,2.81072]
[1732841596167,0.7955,3558.6,3558.3,2.81026]
[1732841596683,0.7955,3558.6,3558.1,2.81048]
[1732841598577,0.7955,3558.6,3558.0,2.81055]
[1732841598781,0.7955,3558.6,3557.4,0.763]
[1732841598990,0.832,3559.1,3558.2,0.8096]
[1732841599293,3.0,3559.6,3558.2,0.8096]
[1732841599294,0.832,3559.6,3559.0,2.80977]
[1732841599464,0.832,3559.6,3559.2,2.80958]
[1732841599668,1.03077338,3559.6,3559.2,2.80961]
[1732841599900,1.03077338,3559.6,3558.8,2.80991]
[1732841600101,1.03077338,3559.6,3558.4,2.81024]
[1732841600264,1.03077338,3559.6,3558.9,2.80978]
[1732841600898,1.03077338,3559.6,3559.0,2.80977]
[1732841602172,1.03077338,3559.6,3559.3,2.80951]
[1732841602480,1.15573377,3559.7,3559.3,2.80951]
[1732841602682,1.15573377,3559.7,3559.6,2.8093]
[1732841604825,0.7843,3560.6,3560.1,2.8089]
[1732841605114,0.7843,3560.6,3559.9,2.80906]
[1732841605266,0.7843,3560.6,3559.8,0.7797]
[1732841605474,0.7843,3560.6,3559.5,2.80934]
[1732841605475,0.02089881,3560.5,3559.5,2.80934]
[1732841605674,3.59284,3560.6,3559.7,2.80921]
[1732841606172,3.0,3560.5,3559.7,2.80921]
[1732841606610,5.80859,3560.5,3559.8,2.80914]
[1732841606768,0.7843,3560.6,3559.8,2.80914]
[1732841606973,0.940115,3560.5,3559.8,2.80914]
[1732841607279,3.940115,3560.5,3559.8,2.80914]
[1732841607483,2.80867,3560.4,3559.3,0.7797]
[1732841607701,3.940115,3560.5,3559.3,0.7797]
[1732841607868,3.940115,3560.5,3559.8,2.80908]
[1732841609078,0.940115,3560.5,3559.9,2.80903]
[1732841609271,0.940115,3560.5,3559.5,2.80938]
[1732841609471,0.940115,3560.5,3559.4,0.02808937]
[1732841609472,0.940115,3560.5,3560.0,2.80897]
[1732841610084,0.940115,3560.5,3559.8,2.80913]
[1732841610407,0.4724415,3560.4,3560.0,2.80897]
[1732841610616,0.7843,3560.6,3560.0,2.80897]
[1732841611277,0.7843,3560.6,3559.9,2.80906]
[1732841612776,0.7843,3560.6,3559.7,2.80922]
[1732841612777,0.02089881,3560.5,3559.7,2.80922]
[1732841612975,2.80875,3560.3,3559.6,2.80927]
[1732841613215,3.0,3560.4,3559.3,0.7797]
[1732841613531,2.80896,3560.1,3559.3,2.8095]
[1732841613816,4.31796988,3560.3,3559.0,0.02809177]
[1732841613817,3.0,3560.2,3559.0,0.02809177]
[1732841613973,0.8287,3560.3,3560.0,2.80892]
[1732841614172,0.8287,3560.3,3559.8,2.80912]
[1732841614173,0.8287,3560.7,3559.8,2.80912]
[1732841614405,0.8287,3560.7,3559.9,2.80906]
[1732841614609,1.473227,3560.7,3559.8,2.80912]
[1732841614775,1.473227,3560.7,3560.0,2.80896]
[1732841615715,0.8287,3560.7,3560.1,2.8089]
[1732841616581,3.8287,3560.7,3560.1,2.8089]
[1732841617311,0.8287,3560.7,3560.1,2.8089]
[1732841617498,3.8287,3560.7,3560.1,2.8089]
[1732841619173,10.4919055,3564.2,3560.7,2.80843]
[1732841619174,0.8017,3561.6,3560.7,2.80843]
[1732841619374,0.8017,3561.6,3560.9,2.80827]
[1732841619612,0.02089881,3561.5,3559.8,0.7641]
[1732841619816,3.61004,3560.9,3559.8,3.57322]
[1732841620123,2.80836,3560.8,3560.0,2.80891]
[1732841620305,3.450178,3560.8,3560.0,2.80891]
[1732841620512,3.450178,3560.8,3559.5,0.8076]
[1732841620513,0.641818,3560.8,3560.2,2.80882]
[1732841620816,0.641818,3560.8,3560.3,2.80873]
[1732841621116,0.8017,3560.9,3559.6,2.80923]
[1732841621293,0.8017,3560.9,3560.1,2.80883]
[1732841621679,2.80865,3560.5,3559.7,2.80922]
[1732841621875,3.0,3560.6,3559.6,2.8093]
[1732841622081,6.61004,3560.9,3560.1,2.80889]
[1732841622317,0.661004,3560.8,3560.1,2.80889]
[1732841622939,0.8017,3560.9,3560.3,2.80874]
[1732841623136,0.7943,3561.4,3560.2,0.7788]
[1732841623428,3.60221,3561.4,3560.3,2.80875]
[1732841623593,0.360221,3561.3,3560.5,2.80853]
[1732841623922,3.168211,3561.3,3560.5,2.80853]
[1732841624119,2.80813,3561.1,3560.3,2.80875]
[1732841624530,0.8126,3560.9,3560.1,2.8089]
[1732841624820,0.8126,3560.9,3559.7,0.7894]
[1732841624987,1.174671,3560.9,3560.2,2.80881]
[1732841625187,0.360221,3561.3,3560.4,2.8086]
[1732841625188,0.25875707,3561.1,3560.4,2.8086]
[1732841625407,2.80805,3561.2,3560.4,2.8086]
[1732841625614,0.8126,3561.0,3559.4,0.7894]
[1732841625922,3.8126,3560.7,3560.1,2.8089]
[1732841626123,0.662102,3560.6,3560.1,2.8089]
[1732841626510,0.662102,3560.6,3559.8,2.8091]
[1732841626884,0.662102,3560.6,3559.4,0.7894]
[1732841627088,0.662102,3560.6,3560.0,2.80898]
[1732841628233,0.662102,3560.6,3559.7,2.8092]
[1732841628438,2.8087,3560.4,3559.5,2.80931]
[1732841628645,2.82966881,3560.3,3559.5,2.80931]
[1732841628788,2.80877,3560.3,3559.6,2.80929]
[1732841629128,3.23900408,3560.5,3559.7,2.80918]
[1732841629432,2.80869,3560.4,3559.7,2.80918]
[1732841629585,3.56092361,3560.4,3559.7,2.80918]
[1732841631130,0.75223361,3560.4,3559.8,2.80912]
[1732841631299,0.75223361,3560.4,3559.4,0.7894]
[1732841631300,0.25967341,3560.4,3560.0,2.80893]
[1732841631500,0.25967341,3560.6,3560.0,2.80893]
[1732841631825,0.25967341,3560.5,3560.0,2.80893]
[1732841631988,3.62104,3560.7,3560.0,2.80893]
[1732841631989,0.25967341,3560.4,3560.0,2.80893]
[1732841632196,3.62104,3560.7,3560.0,2.80893]
[1732841632197,0.25967341,3560.6,3560.0,2.80893]
[1732841632501,0.25967341,3560.5,3560.0,2.80893]
[1732841632701,0.25967341,3560.4,3560.0,2.80893]
[1732841632906,3.62104,3560.7,3560.0,2.80893]
[1732841633110,0.25993084,3560.6,3560.0,2.80893]
[1732841633305,0.25993084,3560.5,3560.0,2.80893]
[1732841633593,0.25993084,3560.4,3559.8,2.80914]
[1732841633916,2.80852,3560.6,3559.8,2.80914]
[1732841633917,0.25993084,3560.3,3559.8,2.80914]
[1732841634131,0.25998358,3560.2,3559.5,2.80933]
[1732841634305,0.8274,3560.3,3559.6,2.80923]
[1732841634306,0.25998358,3560.1,3559.6,2.80923]
[1732841634640,0.25998358,3560.2,3559.6,2.80923]
[1732841634831,0.25998358,3560.1,3559.6,2.80923]
[1732841635027,0.25998358,3560.2,3559.6,2.80923]